[Event "Early-Titled-Tuesday-Blitz-September-26-2023"]
[Site "Chess.com"]
[Date "2023.09.26"]
[Round "5"]
[White "LoaySameer"]
[Black "ExchangeAB"]
[Result "1-0"]
[WhiteElo "2614"]
[BlackElo "2441"]
[TimeControl "180+1"]
[EndTime "8:58:21 PDT"]
[Termination "LoaySameer won by resignation"]

1. Nf3 {[%clk 0:02:55.6]} 1... c6 {[%clk 0:02:59.7]} 2. g3 {[%clk 0:02:55.7]}
2... d5 {[%clk 0:02:59.7]} 3. Bg2 {[%clk 0:02:55.9]} 3... Nf6 {[%clk 0:03:00.5]}
4. O-O {[%clk 0:02:54.8]} 4... Bf5 {[%clk 0:02:57.5]} 5. d3 {[%clk 0:02:54.4]}
5... h6 {[%clk 0:02:57.5]} 6. Nbd2 {[%clk 0:02:54.6]} 6... e6 {[%clk 0:02:57.7]}
7. b3 {[%clk 0:02:53.9]} 7... Bh7 {[%clk 0:02:57.4]} 8. Bb2 {[%clk 0:02:54.2]}
8... Be7 {[%clk 0:02:57.4]} 9. e4 {[%clk 0:02:54.8]} 9... O-O {[%clk 0:02:57.4]}
10. Qe2 {[%clk 0:02:55.1]} 10... a5 {[%clk 0:02:56.7]} 11. a3 {[%clk 0:02:51.2]}
11... b5 {[%clk 0:02:51.8]} 12. Ne5 {[%clk 0:02:50.5]} 12... Nfd7 {[%clk
0:02:50.2]} 13. Nxd7 {[%clk 0:02:44.6]} 13... Nxd7 {[%clk 0:02:51.1]} 14. f4
{[%clk 0:02:45.2]} 14... dxe4 {[%clk 0:02:34.1]} 15. dxe4 {[%clk 0:02:45.3]}
15... Qb6+ {[%clk 0:02:31]} 16. Kh1 {[%clk 0:02:45.4]} 16... a4 {[%clk
0:02:22.8]} 17. f5 {[%clk 0:02:34.4]} 17... axb3 {[%clk 0:02:04.4]} 18. cxb3
{[%clk 0:02:31.8]} 18... exf5 {[%clk 0:01:49.1]} 19. exf5 {[%clk 0:02:31.8]}
19... Bf6 {[%clk 0:01:49.8]} 20. Bxf6 {[%clk 0:02:32.3]} 20... Nxf6 {[%clk
0:01:50.7]} 21. Ne4 {[%clk 0:02:32.7]} 21... Nxe4 {[%clk 0:01:46.7]} 22. Qxe4
{[%clk 0:02:32.9]} 22... c5 {[%clk 0:01:38.1]} 23. Qxa8 {[%clk 0:02:07.1]} 23...
Rxa8 {[%clk 0:01:39]} 24. Bxa8 {[%clk 0:02:07.5]} 24... g6 {[%clk 0:01:20.6]}
25. f6 {[%clk 0:01:35]} 25... g5 {[%clk 0:01:17.6]} 26. Bd5 {[%clk 0:01:33.5]}
26... Bg6 {[%clk 0:01:14.9]} 27. a4 {[%clk 0:01:30.2]} 27... Qd6 {[%clk
0:01:03.5]} 28. Rad1 {[%clk 0:01:22.2]} 28... Qb6 {[%clk 0:00:58.4]} 29. Ra1
{[%clk 0:00:49.7]} 29... bxa4 {[%clk 0:00:51]} 30. bxa4 {[%clk 0:00:49.1]} 30...
c4 {[%clk 0:00:50.8]} 31. a5 {[%clk 0:00:44.1]} 31... Qc5 {[%clk 0:00:50.6]} 32.
Bg2 {[%clk 0:00:41.3]} 32... Bd3 {[%clk 0:00:45.9]} 33. Rfe1 {[%clk 0:00:33.5]}
33... Qa7 {[%clk 0:00:42.2]} 34. Re8+ {[%clk 0:00:27.9]} 34... Kh7 {[%clk
0:00:42.1]} 35. Re7 {[%clk 0:00:28.4]} 35... Qd4 {[%clk 0:00:39.4]} 36. Ree1
{[%clk 0:00:22.7]} 36... Qa7 {[%clk 0:00:34.3]} 37. a6 {[%clk 0:00:21.9]} 37...
Kg6 {[%clk 0:00:30.2]} 38. Re7 {[%clk 0:00:14.9]} 38... Qd4 {[%clk 0:00:30.1]}
39. Rae1 {[%clk 0:00:13.8]} 39... Qxf6 {[%clk 0:00:11.4]} 40. a7 {[%clk
0:00:13.5]} 40... Be4 {[%clk 0:00:09.7]} 41. Bxe4+ {[%clk 0:00:13.1]} 41... Kh5
{[%clk 0:00:09.2]} 42. Bg2 {[%clk 0:00:13.1]} 42... c3 {[%clk 0:00:08.6]} 43.
a8=Q {[%clk 0:00:13.5]} 1-0

[Event "Early-Titled-Tuesday-Blitz-September-26-2023"]
[Site "Chess.com"]
[Date "2023.09.26"]
[Round "5"]
[White "Kostya0705"]
[Black "Flaccidmoves"]
[Result "0-1"]
[WhiteElo "2596"]
[BlackElo "2458"]
[TimeControl "180+1"]
[EndTime "8:58:22 PDT"]
[Termination "Flaccidmoves won by resignation"]

1. e4 {[%clk 0:03:00.9]} 1... Nf6 {[%clk 0:02:59.2]} 2. e5 {[%clk 0:03:00.6]}
2... Nd5 {[%clk 0:02:59.8]} 3. d4 {[%clk 0:03:01.5]} 3... d6 {[%clk 0:02:59.8]}
4. c4 {[%clk 0:02:59.4]} 4... Nb6 {[%clk 0:02:59.7]} 5. exd6 {[%clk 0:02:59.9]}
5... exd6 {[%clk 0:02:59.3]} 6. Bd3 {[%clk 0:02:59.5]} 6... Be7 {[%clk
0:02:57.2]} 7. a3 {[%clk 0:02:58.8]} 7... O-O {[%clk 0:02:53.6]} 8. Qc2 {[%clk
0:02:58.6]} 8... Re8 {[%clk 0:02:42]} 9. Ne2 {[%clk 0:02:48.9]} 9... g6 {[%clk
0:02:34]} 10. Nbc3 {[%clk 0:02:45.3]} 10... Nc6 {[%clk 0:02:32.6]} 11. Be3
{[%clk 0:02:45.1]} 11... Bg4 {[%clk 0:02:29.2]} 12. O-O-O {[%clk 0:02:40.5]}
12... Bf6 {[%clk 0:02:17.3]} 13. h3 {[%clk 0:02:40.6]} 13... Bxe2 {[%clk
0:02:14.9]} 14. Nxe2 {[%clk 0:02:41.5]} 14... Bg5 {[%clk 0:01:59.1]} 15. Bxg5
{[%clk 0:02:29.8]} 15... Qxg5+ {[%clk 0:02:00]} 16. f4 {[%clk 0:02:29.8]} 16...
Qxg2 {[%clk 0:01:36.7]} 17. f5 {[%clk 0:02:16.5]} 17... Qf2 {[%clk 0:01:16.5]}
18. fxg6 {[%clk 0:02:15.2]} 18... hxg6 {[%clk 0:01:14.5]} 19. Bxg6 {[%clk
0:02:02.1]} 19... Rxe2 {[%clk 0:01:13.6]} 20. Bxf7+ {[%clk 0:01:51.8]} 20...
Kxf7 {[%clk 0:00:53.7]} 21. Qh7+ {[%clk 0:01:51]} 21... Ke8 {[%clk 0:00:48.3]}
22. Rhf1 {[%clk 0:01:10.4]} 22... Qe3+ {[%clk 0:00:41.5]} 23. Kb1 {[%clk
0:01:10.8]} 23... Qe4+ {[%clk 0:00:42]} 24. Qxe4+ {[%clk 0:01:06.7]} 24... Rxe4
{[%clk 0:00:42.9]} 25. Rg1 {[%clk 0:01:06.6]} 25... Kd7 {[%clk 0:00:24.5]} 26.
c5 {[%clk 0:01:04]} 26... Nd5 {[%clk 0:00:20.2]} 27. Rg5 {[%clk 0:01:04.5]}
27... Nf4 {[%clk 0:00:18.8]} 28. d5 {[%clk 0:01:03.4]} 28... Ne5 {[%clk
0:00:18.7]} 29. Rg7+ {[%clk 0:01:00.9]} 29... Ke8 {[%clk 0:00:15.9]} 30. Rg8+
{[%clk 0:00:59.7]} 30... Kf7 {[%clk 0:00:16.5]} 31. Rxa8 {[%clk 0:00:59.1]}
31... dxc5 {[%clk 0:00:17.1]} 32. Rc8 {[%clk 0:00:58.9]} 32... b6 {[%clk
0:00:15.8]} 33. Rxc7+ {[%clk 0:00:58.9]} 33... Kf6 {[%clk 0:00:16.3]} 34. d6
{[%clk 0:00:58.1]} 34... Rd4 {[%clk 0:00:15.7]} 35. Rxd4 {[%clk 0:00:43.9]}
35... cxd4 {[%clk 0:00:16.6]} 36. d7 {[%clk 0:00:41.8]} 36... Ke7 {[%clk
0:00:16.7]} 37. Rxa7 {[%clk 0:00:39.8]} 37... Nxd7 {[%clk 0:00:16.4]} 38. Kc2
{[%clk 0:00:40.3]} 38... Kd6 {[%clk 0:00:16.2]} 39. a4 {[%clk 0:00:39.9]} 39...
Nc5 {[%clk 0:00:15.9]} 40. Ra8 {[%clk 0:00:31.2]} 40... d3+ {[%clk 0:00:15.9]}
41. Kc1 {[%clk 0:00:31.4]} 41... Nb3+ {[%clk 0:00:15.8]} 42. Kd1 {[%clk
0:00:32]} 42... Kc5 {[%clk 0:00:15.6]} 43. h4 {[%clk 0:00:28.6]} 43... Nd5
{[%clk 0:00:16]} 44. h5 {[%clk 0:00:27.7]} 44... Ne3+ {[%clk 0:00:16]} 45. Ke1
{[%clk 0:00:25.5]} 45... d2+ {[%clk 0:00:16.2]} 46. Kf2 {[%clk 0:00:26.4]} 46...
d1=Q {[%clk 0:00:16.3]} 47. Rc8+ {[%clk 0:00:25.7]} 47... Kb4 {[%clk 0:00:15.7]}
48. Kxe3 {[%clk 0:00:25.8]} 48... Qxh5 {[%clk 0:00:15.3]} 49. Rc3 {[%clk
0:00:26.5]} 49... Qe5+ {[%clk 0:00:14.3]} 50. Kd3 {[%clk 0:00:26.3]} 50... Qd4+
{[%clk 0:00:14.1]} 51. Kc2 {[%clk 0:00:26.9]} 51... Qd2+ {[%clk 0:00:14]} 52.
Kb1 {[%clk 0:00:27.1]} 52... Qd1+ {[%clk 0:00:14.2]} 0-1

[Event "Early-Titled-Tuesday-Blitz-September-26-2023"]
[Site "Chess.com"]
[Date "2023.09.26"]
[Round "5"]
[White "SargissyanSargis"]
[Black "Boundless_Strike"]
[Result "0-1"]
[WhiteElo "2417"]
[BlackElo "2599"]
[TimeControl "180+1"]
[EndTime "8:58:22 PDT"]
[Termination "Boundless_Strike won on time"]

1. e4 {[%clk 0:03:00.9]} 1... d6 {[%clk 0:02:58.7]} 2. d4 {[%clk 0:03:00.6]}
2... e5 {[%clk 0:02:58.5]} 3. Nc3 {[%clk 0:03:01.5]} 3... a6 {[%clk 0:02:55.5]}
4. dxe5 {[%clk 0:02:57.9]} 4... Nc6 {[%clk 0:02:55.5]} 5. exd6 {[%clk
0:02:55.7]} 5... Bxd6 {[%clk 0:02:56.4]} 6. Nf3 {[%clk 0:02:55.6]} 6... Bg4
{[%clk 0:02:55.9]} 7. h3 {[%clk 0:02:54.4]} 7... Bh5 {[%clk 0:02:55.8]} 8. Be2
{[%clk 0:02:48.3]} 8... Qe7 {[%clk 0:02:55.6]} 9. Bg5 {[%clk 0:02:46.8]} 9... f6
{[%clk 0:02:54.5]} 10. Be3 {[%clk 0:02:36.3]} 10... O-O-O {[%clk 0:02:53.8]} 11.
Qc1 {[%clk 0:02:27.5]} 11... g5 {[%clk 0:02:46.3]} 12. O-O {[%clk 0:01:59]}
12... Nh6 {[%clk 0:02:30.1]} 13. Nd5 {[%clk 0:01:51.7]} 13... Qf7 {[%clk
0:01:56.6]} 14. c4 {[%clk 0:01:47.4]} 14... g4 {[%clk 0:01:48.7]} 15. hxg4
{[%clk 0:01:35.7]} 15... Nxg4 {[%clk 0:01:48.5]} 16. Bf4 {[%clk 0:01:36.4]}
16... Rhg8 {[%clk 0:01:35.4]} 17. c5 {[%clk 0:01:33.4]} 17... Be5 {[%clk
0:01:31]} 18. Nxe5 {[%clk 0:00:52.1]} 18... fxe5 {[%clk 0:01:25.5]} 19. Bg3
{[%clk 0:00:43.2]} 19... Nd4 {[%clk 0:01:24.7]} 20. Bc4 {[%clk 0:00:34]} 20...
Qg7 {[%clk 0:00:28]} 21. Qc3 {[%clk 0:00:26.4]} 21... Be8 {[%clk 0:00:23]} 22.
Bh4 {[%clk 0:00:15.1]} 22... Qh6 {[%clk 0:00:22.7]} 23. Bg3 {[%clk 0:00:13.5]}
23... Bb5 {[%clk 0:00:19]} 24. Ne7+ {[%clk 0:00:12.1]} 24... Kb8 {[%clk
0:00:18.5]} 25. Nxg8 {[%clk 0:00:12.6]} 25... Rxg8 {[%clk 0:00:18.9]} 26. Bxb5
{[%clk 0:00:10]} 26... axb5 {[%clk 0:00:18.8]} 27. Rfe1 {[%clk 0:00:08.8]} 27...
b4 {[%clk 0:00:17.7]} 28. Qc4 {[%clk 0:00:08.7]} 28... Rg7 {[%clk 0:00:15.6]}
29. Rad1 {[%clk 0:00:08.1]} 29... Kc8 {[%clk 0:00:10.6]} 30. Rxd4 {[%clk
0:00:08.1]} 30... exd4 {[%clk 0:00:11.5]} 31. Qxd4 {[%clk 0:00:08.9]} 31... Rd7
{[%clk 0:00:10]} 32. Qh8+ {[%clk 0:00:07.3]} 32... Rd8 {[%clk 0:00:10.7]} 33.
Qxd8+ {[%clk 0:00:01.2]} 33... Kxd8 {[%clk 0:00:10.7]} 34. f3 {[%clk 0:00:01.3]}
34... Ne3 {[%clk 0:00:08.3]} 0-1

[Event "Early-Titled-Tuesday-Blitz-September-26-2023"]
[Site "Chess.com"]
[Date "2023.09.26"]
[Round "5"]
[White "GeorgiosSouleidis"]
[Black "attack2mateU"]
[Result "1-0"]
[WhiteElo "2565"]
[BlackElo "2735"]
[TimeControl "180+1"]
[EndTime "8:58:24 PDT"]
[Termination "GeorgiosSouleidis won by resignation"]

1. e4 {[%clk 0:03:00.9]} 1... c5 {[%clk 0:02:59.3]} 2. Be2 {[%clk 0:03:00.6]}
2... Nc6 {[%clk 0:02:55.5]} 3. d3 {[%clk 0:03:00.9]} 3... e6 {[%clk 0:02:54.2]}
4. f4 {[%clk 0:03:01.3]} 4... d5 {[%clk 0:02:54.9]} 5. Nf3 {[%clk 0:03:01.9]}
5... Bd6 {[%clk 0:02:54.7]} 6. O-O {[%clk 0:03:01.7]} 6... Nge7 {[%clk
0:02:55.3]} 7. c3 {[%clk 0:03:02]} 7... O-O {[%clk 0:02:55.4]} 8. g3 {[%clk
0:03:01.3]} 8... Bc7 {[%clk 0:02:09.9]} 9. Be3 {[%clk 0:02:53.2]} 9... d4 {[%clk
0:02:10]} 10. Bf2 {[%clk 0:02:36.6]} 10... b5 {[%clk 0:01:55.1]} 11. cxd4 {[%clk
0:02:31.3]} 11... cxd4 {[%clk 0:01:55.3]} 12. a4 {[%clk 0:02:26.4]} 12... b4
{[%clk 0:01:43.4]} 13. Nbd2 {[%clk 0:02:15.9]} 13... a5 {[%clk 0:01:42.9]} 14.
Rc1 {[%clk 0:02:09.1]} 14... Ba6 {[%clk 0:01:41.5]} 15. Nb3 {[%clk 0:01:59.1]}
15... Bb6 {[%clk 0:01:41.3]} 16. Nc5 {[%clk 0:01:52.4]} 16... Bxc5 {[%clk
0:01:26.2]} 17. Rxc5 {[%clk 0:01:53.3]} 17... Qb6 {[%clk 0:01:21.8]} 18. Rc1
{[%clk 0:01:22.6]} 18... b3 {[%clk 0:01:21.4]} 19. Nd2 {[%clk 0:00:56.3]} 19...
Rab8 {[%clk 0:01:17.6]} 20. Nc4 {[%clk 0:00:55.1]} 20... Qb4 {[%clk 0:01:13.7]}
21. Be1 {[%clk 0:00:40.8]} 21... Qxa4 {[%clk 0:01:13.7]} 22. Ra1 {[%clk
0:00:41.1]} 22... Qb5 {[%clk 0:01:13.2]} 23. Nxa5 {[%clk 0:00:40.8]} 23... Nxa5
{[%clk 0:01:10.3]} 24. Rxa5 {[%clk 0:00:38.7]} 24... Qb7 {[%clk 0:01:10.5]} 25.
Qa1 {[%clk 0:00:34]} 25... Bb5 {[%clk 0:01:07.9]} 26. Ra7 {[%clk 0:00:28.8]}
26... Qc6 {[%clk 0:00:42.3]} 27. Rxe7 {[%clk 0:00:28.5]} 27... Qc2 {[%clk
0:00:42.5]} 28. Rf2 {[%clk 0:00:18]} 28... Ra8 {[%clk 0:00:42.2]} 29. Qd1 {[%clk
0:00:17.8]} 29... Qxb2 {[%clk 0:00:41.7]} 30. Bf1 {[%clk 0:00:17.1]} 30... Qa3
{[%clk 0:00:41.2]} 31. Rb7 {[%clk 0:00:14.7]} 31... Rfb8 {[%clk 0:00:35]} 32.
Rxb8+ {[%clk 0:00:14.8]} 32... Rxb8 {[%clk 0:00:35.9]} 33. Qb1 {[%clk
0:00:14.7]} 33... Ba4 {[%clk 0:00:30.6]} 34. Qb2 {[%clk 0:00:14]} 34... Qc5
{[%clk 0:00:30.9]} 35. Rd2 {[%clk 0:00:11.2]} 35... h5 {[%clk 0:00:28.5]} 36.
Be2 {[%clk 0:00:10.7]} 36... h4 {[%clk 0:00:27.7]} 37. gxh4 {[%clk 0:00:11.2]}
37... Rc8 {[%clk 0:00:18.1]} 38. Bf2 {[%clk 0:00:06.9]} 38... Qc1+ {[%clk
0:00:13.2]} 39. Kg2 {[%clk 0:00:07.2]} 39... Rd8 {[%clk 0:00:02]} 1-0

[Event "Early-Titled-Tuesday-Blitz-September-26-2023"]
[Site "Chess.com"]
[Date "2023.09.26"]
[Round "5"]
[White "RobertoJBM"]
[Black "Chaos_Magic"]
[Result "1-0"]
[WhiteElo "2821"]
[BlackElo "2417"]
[TimeControl "180+1"]
[EndTime "8:58:26 PDT"]
[Termination "RobertoJBM won on time"]

1. e4 {[%clk 0:03:00.9]} 1... e5 {[%clk 0:02:59.6]} 2. Nf3 {[%clk 0:03:00.7]}
2... Nc6 {[%clk 0:02:58.8]} 3. Bb5 {[%clk 0:03:00.2]} 3... a6 {[%clk 0:02:58.4]}
4. Ba4 {[%clk 0:03:00]} 4... Nf6 {[%clk 0:02:58.2]} 5. O-O {[%clk 0:02:59.7]}
5... Be7 {[%clk 0:02:56.5]} 6. Re1 {[%clk 0:02:59.6]} 6... b5 {[%clk 0:02:56.4]}
7. Bb3 {[%clk 0:02:59.2]} 7... d6 {[%clk 0:02:56.7]} 8. c3 {[%clk 0:02:58.2]}
8... O-O {[%clk 0:02:55.9]} 9. h3 {[%clk 0:02:57.9]} 9... Bb7 {[%clk 0:02:55.6]}
10. d4 {[%clk 0:02:57]} 10... Re8 {[%clk 0:02:55.5]} 11. Nbd2 {[%clk 0:02:56]}
11... Bf8 {[%clk 0:02:55.8]} 12. a4 {[%clk 0:02:54.2]} 12... g6 {[%clk
0:02:47.6]} 13. Nf1 {[%clk 0:02:50.8]} 13... Bg7 {[%clk 0:02:43.4]} 14. d5
{[%clk 0:02:46.6]} 14... Nb8 {[%clk 0:02:39.2]} 15. c4 {[%clk 0:02:45]} 15... c6
{[%clk 0:02:26]} 16. Bg5 {[%clk 0:02:37.6]} 16... bxc4 {[%clk 0:02:21]} 17. dxc6
{[%clk 0:02:32.5]} 17... Bxc6 {[%clk 0:02:00.6]} 18. Bxc4 {[%clk 0:02:32.6]}
18... h6 {[%clk 0:02:00.6]} 19. Bh4 {[%clk 0:02:18]} 19... g5 {[%clk 0:01:45]}
20. Bxg5 {[%clk 0:02:17.6]} 20... hxg5 {[%clk 0:01:44.2]} 21. Nxg5 {[%clk
0:02:18.5]} 21... d5 {[%clk 0:01:33.8]} 22. exd5 {[%clk 0:02:18.4]} 22... Bxd5
{[%clk 0:01:34.1]} 23. Qb3 {[%clk 0:02:15.8]} 23... Bxc4 {[%clk 0:01:16.2]} 24.
Qxc4 {[%clk 0:02:16.7]} 24... Qd5 {[%clk 0:01:16.3]} 25. Qh4 {[%clk 0:02:15.8]}
25... e4 {[%clk 0:00:40.1]} 26. Rad1 {[%clk 0:02:12.5]} 26... Qe5 {[%clk
0:00:39.4]} 27. Ne3 {[%clk 0:02:07.3]} 27... Nc6 {[%clk 0:00:31.3]} 28. Nc4
{[%clk 0:01:51.3]} 28... Qc5 {[%clk 0:00:19.3]} 29. Nd6 {[%clk 0:01:49.6]} 29...
Re7 {[%clk 0:00:18.6]} 30. Ndxe4 {[%clk 0:01:19]} 30... Nxe4 {[%clk 0:00:18.4]}
31. Nxe4 {[%clk 0:01:19.9]} 31... Qf5 {[%clk 0:00:15.3]} 32. Ng3 {[%clk
0:01:02.8]} 32... Rxe1+ {[%clk 0:00:13.5]} 33. Rxe1 {[%clk 0:01:03.7]} 33... Qg6
{[%clk 0:00:12.5]} 34. b4 {[%clk 0:00:59.7]} 34... Rb8 {[%clk 0:00:11.4]} 35.
Re4 {[%clk 0:00:59.3]} 35... Ne5 {[%clk 0:00:08.7]} 36. Kh2 {[%clk 0:00:56]}
36... Qf6 {[%clk 0:00:05.7]} 37. Qxf6 {[%clk 0:00:36.2]} 37... Bxf6 {[%clk
0:00:06.6]} 38. Nh5 {[%clk 0:00:36.9]} 38... Bh8 {[%clk 0:00:06.6]} 39. Nf4
{[%clk 0:00:35.1]} 39... Nc6 {[%clk 0:00:06.1]} 40. Nd5 {[%clk 0:00:35]} 40...
Be5+ {[%clk 0:00:04.2]} 41. f4 {[%clk 0:00:34.6]} 41... Bd6 {[%clk 0:00:04.6]}
42. Kg3 {[%clk 0:00:25.8]} 42... Nxb4 {[%clk 0:00:04.3]} 43. Nf6+ {[%clk
0:00:21.2]} 43... Kf8 {[%clk 0:00:03]} 44. Nd7+ {[%clk 0:00:21]} 44... Kg7
{[%clk 0:00:03.2]} 45. Nxb8 {[%clk 0:00:21.9]} 1-0

[Event "Early-Titled-Tuesday-Blitz-September-26-2023"]
[Site "Chess.com"]
[Date "2023.09.26"]
[Round "5"]
[White "remi04"]
[Black "lefonghua"]
[Result "1-0"]
[WhiteElo "2831"]
[BlackElo "2620"]
[TimeControl "180+1"]
[EndTime "8:58:30 PDT"]
[Termination "remi04 won by resignation"]

1. c4 {[%clk 0:03:00.7]} 1... Nf6 {[%clk 0:02:59.8]} 2. Nc3 {[%clk 0:03:01.1]}
2... g6 {[%clk 0:03:00.4]} 3. g3 {[%clk 0:03:01.2]} 3... Bg7 {[%clk 0:03:01]} 4.
Bg2 {[%clk 0:03:01.9]} 4... O-O {[%clk 0:03:01.7]} 5. d4 {[%clk 0:03:02.6]} 5...
d6 {[%clk 0:03:01.9]} 6. Nf3 {[%clk 0:03:03.2]} 6... Nc6 {[%clk 0:03:02.4]} 7.
O-O {[%clk 0:03:03.5]} 7... a6 {[%clk 0:03:03.1]} 8. Bf4 {[%clk 0:03:01.4]} 8...
h6 {[%clk 0:03:01]} 9. Rc1 {[%clk 0:02:48.9]} 9... Rb8 {[%clk 0:02:56.4]} 10. b3
{[%clk 0:02:46.8]} 10... b5 {[%clk 0:02:36.7]} 11. cxb5 {[%clk 0:02:28.2]} 11...
axb5 {[%clk 0:02:36.8]} 12. Nxb5 {[%clk 0:02:07.2]} 12... Rxb5 {[%clk
0:02:36.8]} 13. Rxc6 {[%clk 0:02:06.5]} 13... Bb7 {[%clk 0:02:31.1]} 14. Rc4
{[%clk 0:02:02.9]} 14... Bd5 {[%clk 0:02:25.1]} 15. Rc1 {[%clk 0:01:57.3]} 15...
Qa8 {[%clk 0:02:13.7]} 16. Rxc7 {[%clk 0:01:29.1]} 16... Qxa2 {[%clk 0:02:12.3]}
17. Rxe7 {[%clk 0:01:29.1]} 17... Bxb3 {[%clk 0:02:08.5]} 18. Qb1 {[%clk
0:01:27]} 18... Nd5 {[%clk 0:02:03.2]} 19. Qxa2 {[%clk 0:01:26]} 19... Bxa2
{[%clk 0:02:03.2]} 20. Rd7 {[%clk 0:01:21.4]} 20... Nxf4 {[%clk 0:02:01.3]} 21.
gxf4 {[%clk 0:01:22.3]} 21... Re8 {[%clk 0:01:50.2]} 22. e3 {[%clk 0:01:20.5]}
22... Bf8 {[%clk 0:01:42.3]} 23. Nd2 {[%clk 0:01:17.9]} 23... d5 {[%clk
0:01:31]} 24. Nf3 {[%clk 0:01:16.1]} 24... Bc4 {[%clk 0:01:19.6]} 25. Ra1 {[%clk
0:01:13.9]} 25... Reb8 {[%clk 0:01:19.5]} 26. h4 {[%clk 0:01:06.9]} 26... Rb1+
{[%clk 0:01:17]} 27. Rxb1 {[%clk 0:01:07.2]} 27... Rxb1+ {[%clk 0:01:17.7]} 28.
Kh2 {[%clk 0:01:07.8]} 28... Rb2 {[%clk 0:01:06.2]} 29. Kg3 {[%clk 0:01:02.3]}
29... f6 {[%clk 0:01:00.9]} 30. Nh2 {[%clk 0:00:57.4]} 30... h5 {[%clk 0:00:55]}
31. Bxd5+ {[%clk 0:00:55.9]} 31... Bxd5 {[%clk 0:00:55.6]} 32. Rxd5 {[%clk
0:00:56.7]} 32... Kf7 {[%clk 0:00:56.1]} 33. Nf3 {[%clk 0:00:53.2]} 33... Ke6
{[%clk 0:00:54.4]} 34. Ra5 {[%clk 0:00:52.6]} 34... Bd6 {[%clk 0:00:53.8]} 35.
Ra6 {[%clk 0:00:49.2]} 35... Ke7 {[%clk 0:00:52.7]} 36. Ne1 {[%clk 0:00:46.2]}
36... g5 {[%clk 0:00:50.4]} 37. Ng2 {[%clk 0:00:27.8]} 37... Ke6 {[%clk
0:00:45.1]} 38. Ra5 {[%clk 0:00:23.6]} 38... g4 {[%clk 0:00:39.2]} 39. Rxh5
{[%clk 0:00:22.1]} 39... f5 {[%clk 0:00:38.9]} 40. Rh6+ {[%clk 0:00:21.2]} 40...
Ke7 {[%clk 0:00:39.4]} 41. h5 {[%clk 0:00:20.4]} 41... Rb1 {[%clk 0:00:39.2]}
42. Rh7+ {[%clk 0:00:19.9]} 42... Kf6 {[%clk 0:00:39]} 43. Rh6+ {[%clk
0:00:16.5]} 43... Ke7 {[%clk 0:00:36]} 44. Nh4 {[%clk 0:00:16.4]} 44... Kd7
{[%clk 0:00:30.6]} 45. Nxf5 {[%clk 0:00:16.1]} 45... Bf8 {[%clk 0:00:29.7]} 46.
Rg6 {[%clk 0:00:13.8]} 46... Rg1+ {[%clk 0:00:29.1]} 47. Kh2 {[%clk 0:00:13.8]}
47... Rf1 {[%clk 0:00:29.6]} 48. Rxg4 {[%clk 0:00:13.6]} 48... Rxf2+ {[%clk
0:00:30]} 49. Kg3 {[%clk 0:00:14.1]} 49... Rf1 {[%clk 0:00:29.9]} 50. Kg2 {[%clk
0:00:12.8]} 50... Re1 {[%clk 0:00:29.2]} 51. Rg8 {[%clk 0:00:12.8]} 51... Ke8
{[%clk 0:00:26.7]} 52. h6 {[%clk 0:00:12.9]} 52... Kf7 {[%clk 0:00:27.1]} 53. h7
{[%clk 0:00:13.5]} 53... Re2+ {[%clk 0:00:27.6]} 54. Kf3 {[%clk 0:00:12.7]}
54... Rh2 {[%clk 0:00:26.8]} 55. h8=Q {[%clk 0:00:13]} 1-0

[Event "Early-Titled-Tuesday-Blitz-September-26-2023"]
[Site "Chess.com"]
[Date "2023.09.26"]
[Round "5"]
[White "KorolDimitriy75"]
[Black "CarlosjPineror"]
[Result "1-0"]
[WhiteElo "2399"]
[BlackElo "2561"]
[TimeControl "180+1"]
[EndTime "8:58:30 PDT"]
[Termination "KorolDimitriy75 won by checkmate"]

1. d4 {[%clk 0:02:47.5]} 1... Nf6 {[%clk 0:02:59.4]} 2. c4 {[%clk 0:02:48.1]}
2... g6 {[%clk 0:02:59.2]} 3. Nc3 {[%clk 0:02:48.7]} 3... Bg7 {[%clk 0:02:59.8]}
4. e4 {[%clk 0:02:49.1]} 4... O-O {[%clk 0:03:00.1]} 5. Nf3 {[%clk 0:02:49.7]}
5... c5 {[%clk 0:03:00.4]} 6. Be2 {[%clk 0:02:50.6]} 6... cxd4 {[%clk
0:02:59.5]} 7. Nxd4 {[%clk 0:02:51.5]} 7... Nc6 {[%clk 0:03:00]} 8. Be3 {[%clk
0:02:51.7]} 8... d6 {[%clk 0:03:00.2]} 9. O-O {[%clk 0:02:51.4]} 9... Bd7 {[%clk
0:02:47.3]} 10. f3 {[%clk 0:02:46.2]} 10... a5 {[%clk 0:02:42.1]} 11. Qd2 {[%clk
0:02:45]} 11... a4 {[%clk 0:02:41.4]} 12. Rac1 {[%clk 0:02:37]} 12... Nxd4
{[%clk 0:02:36.4]} 13. Bxd4 {[%clk 0:02:37.9]} 13... Bc6 {[%clk 0:02:36.4]} 14.
Rfd1 {[%clk 0:02:37.7]} 14... Nd7 {[%clk 0:02:35.4]} 15. Be3 {[%clk 0:02:23.1]}
15... Qa5 {[%clk 0:02:33.2]} 16. Bf1 {[%clk 0:02:21.1]} 16... Rfc8 {[%clk
0:02:32.7]} 17. Kh1 {[%clk 0:02:20]} 17... Nc5 {[%clk 0:02:12.8]} 18. Rc2 {[%clk
0:02:10.8]} 18... a3 {[%clk 0:01:51.5]} 19. b3 {[%clk 0:02:10]} 19... Na6 {[%clk
0:01:51.7]} 20. Bd4 {[%clk 0:01:54.6]} 20... Bxd4 {[%clk 0:01:48.8]} 21. Qxd4
{[%clk 0:01:54.5]} 21... Qc5 {[%clk 0:01:48.5]} 22. Qd2 {[%clk 0:01:50.1]} 22...
Nb4 {[%clk 0:01:47.3]} 23. Rcc1 {[%clk 0:01:49.7]} 23... Rd8 {[%clk 0:01:43.7]}
24. Nd5 {[%clk 0:01:09.3]} 24... Bxd5 {[%clk 0:01:29.7]} 25. cxd5 {[%clk
0:00:32.9]} 25... Qb6 {[%clk 0:01:28.5]} 26. Rc4 {[%clk 0:00:32.9]} 26... Na6
{[%clk 0:01:26]} 27. Rdc1 {[%clk 0:00:33]} 27... Nc5 {[%clk 0:01:15.7]} 28. b4
{[%clk 0:00:32.8]} 28... Nd7 {[%clk 0:01:12.9]} 29. Rc7 {[%clk 0:00:28.4]} 29...
Kg7 {[%clk 0:00:50.2]} 30. h3 {[%clk 0:00:21.9]} 30... Ra4 {[%clk 0:00:39.9]}
31. b5 {[%clk 0:00:19.7]} 31... Nc5 {[%clk 0:00:24.3]} 32. Rxe7 {[%clk
0:00:18.6]} 32... Kf6 {[%clk 0:00:18.7]} 33. e5+ {[%clk 0:00:07.1]} 33... Kxe7
{[%clk 0:00:18.3]} 34. exd6+ {[%clk 0:00:07.1]} 34... Qxd6 {[%clk 0:00:17.5]}
35. Qe3+ {[%clk 0:00:07.1]} 35... Kf8 {[%clk 0:00:16.5]} 36. Rxc5 {[%clk
0:00:06.2]} 36... Rb4 {[%clk 0:00:13.9]} 37. Qc3 {[%clk 0:00:05.5]} 37... Rb1
{[%clk 0:00:13.5]} 38. Kg1 {[%clk 0:00:02.5]} 38... Re8 {[%clk 0:00:11.7]} 39.
Rc7 {[%clk 0:00:01.7]} 39... Qg3 {[%clk 0:00:11.7]} 40. Qh8# {[%clk 0:00:01.6]}
1-0